fUST/lending_fUST_20250315
["ID","MTS","AMOUNT","RATE_DAILY","PERIOD"]
[356180656,1742030823560,-500.0,8.219e-05,2]
[356180657,1742030823582,-500.0,8.219e-05,2]
[356180658,1742030823605,-500.0,8.219e-05,2]
[356180659,1742030823628,-500.0,8.219e-05,2]
[356180660,1742030823651,-11371.15,8.219e-05,2]
[356180661,1742030823675,-1705.31,8.219e-05,2]
[356180662,1742030823698,-500.0,8.219e-05,2]
[356180663,1742030823721,-500.0,8.219e-05,2]
[356180664,1742030823744,-1443.61,8.219e-05,2]
[356180665,1742030823768,-500.0,8.219e-05,2]
[356180666,1742030823791,-500.0,8.219e-05,2]
[356180667,1742030823814,-799.14,8.219e-05,2]
[356180668,1742030823838,-500.0,8.219e-05,2]
[356180669,1742030823861,-500.0,8.219e-05,2]
[356180670,1742030823885,-500.0,8.219e-05,2]
[356180671,1742030823907,-500.0,8.219e-05,2]
[356180672,1742030823931,-500.0,8.219e-05,2]
[356180673,1742030823957,-500.0,8.219e-05,2]
[356180674,1742030823981,-500.0,8.219e-05,2]
[356180675,1742030824007,-500.0,8.219e-05,2]
[356180676,1742030824030,-158.81687196,8.219e-05,2]
[356180677,1742030824053,-796.4,8.219e-05,2]
[356180678,1742030824077,-253.6645537,8.219e-05,2]
[356180679,1742030824099,-8687.62,8.219e-05,2]
[356180680,1742030824124,-500.0,8.219e-05,2]
[356180681,1742030824147,-500.0,8.219e-05,2]
[356180682,1742030824170,-225.86235389,8.219e-05,2]
[356180683,1742030824194,-864.21,8.219e-05,2]
[356180684,1742030824218,-500.0,8.219e-05,2]
[356180685,1742030824432,-1462.55,8.219e-05,2]
[356180686,1742030824456,-500.0,8.219e-05,2]
[356180687,1742030824481,-500.0,8.219e-05,2]
[356180688,1742030824506,-4754.86,8.219e-05,2]
[356180689,1742030824529,-500.0,8.219e-05,2]
[356180690,1742030824553,-6120.63,8.219e-05,2]
[356180691,1742030824576,-500.0,8.219e-05,2]
[356180692,1742030824600,-500.0,8.219e-05,2]
[356180693,1742030824624,-1922.82,8.219e-05,2]
[356180694,1742030824647,-500.0,8.219e-05,2]
[356180695,1742030824670,-500.0,8.219e-05,2]
[356180696,1742030824694,-500.0,8.219e-05,2]
[356180697,1742030824718,-563.38602048,8.219e-05,2]
[356180698,1742030824741,-500.0,8.219e-05,2]
[356180699,1742030824765,-8975.1,8.219e-05,2]
[356180700,1742030824788,-500.0,8.219e-05,2]
[356180701,1742030824810,-500.0,8.219e-05,2]
[356180702,1742030824833,-500.0,8.219e-05,2]
[356180703,1742030824855,-500.0,8.219e-05,2]
[356180704,1742030824878,-500.0,8.219e-05,2]
[356180705,1742030824901,-500.0,8.219e-05,2]
[356180706,1742030824924,-275.49477678,8.219e-05,2]
[356180707,1742030824947,-500.0,8.219e-05,2]
[356180708,1742030824969,-500.0,8.219e-05,2]
[356180709,1742030824993,-505.27276065,8.219e-05,2]
[356180710,1742030825016,-500.0,8.219e-05,2]
[356180711,1742030825039,-500.0,8.219e-05,2]
[356180712,1742030825062,-500.0,8.219e-05,2]
[356180713,1742030825085,-2148.65,8.219e-05,2]
[356180714,1742030825107,-500.0,8.219e-05,2]
[356180715,1742030825128,-500.0,8.219e-05,2]
[356180716,1742030825149,-500.0,8.219e-05,2]
[356180717,1742030825171,-610.86982288,8.219e-05,2]
[356180718,1742030825193,-516.46533331,8.219e-05,2]
[356180719,1742030825215,-790.64,8.219e-05,2]
[356180720,1742030825237,-875.36,8.219e-05,2]
[356180721,1742030825260,-504.37412011,8.219e-05,2]
[356180722,1742030825282,-516.2597865,8.219e-05,2]
[356180723,1742030825305,-500.0,8.219e-05,2]
[356180724,1742030825327,-7621.86,8.219e-05,2]
[356180725,1742030825353,-500.0,8.219e-05,2]
[356180726,1742030825375,-15433.29,8.219e-05,2]
[356180727,1742030825397,-394.85922682,8.219e-05,2]
[356180728,1742030825423,-1009.81,8.219e-05,2]
[356180729,1742030825448,-1373.91,8.219e-05,2]
[356180730,1742030825469,-500.0,8.219e-05,2]
[356180731,1742030825492,-500.0,8.219e-05,2]
[356180732,1742030825516,-500.0,8.219e-05,2]
[356180733,1742030825538,-500.0,8.219e-05,2]
[356180734,1742030825559,-500.0,8.219e-05,2]
[356180735,1742030825582,-698.48,8.219e-05,2]
[356180736,1742030825603,-500.0,8.219e-05,2]
[356180737,1742030825627,-500.0,8.219e-05,2]
[356180738,1742030825649,-500.0,8.219e-05,2]
[356180739,1742030825672,-500.0,8.219e-05,2]
[356180740,1742030825698,-10823.8,8.219e-05,2]
[356180741,1742030825720,-500.0,8.219e-05,2]
[356180742,1742030825742,-1863.69,8.219e-05,2]
[356180743,1742030825764,-500.0,8.219e-05,2]
[356180744,1742030825786,-500.0,8.219e-05,2]
[356180745,1742030825808,-500.0,8.219e-05,2]
[356180746,1742030825830,-3640.87,8.219e-05,2]
[356180747,1742030825852,-500.0,8.219e-05,2]
[356180748,1742030825874,-759.28,8.219e-05,2]
[356180749,1742030825897,-1523.22,8.219e-05,2]
[356180750,1742030825919,-3242.15,8.219e-05,2]
[356180751,1742030825941,-500.0,8.219e-05,2]
[356180752,1742030825963,-682.6,8.219e-05,2]
[356180753,1742030825987,-500.0,8.219e-05,2]
[356180754,1742030826009,-500.0,8.219e-05,2]
[356180755,1742030826030,-500.0,8.219e-05,2]
[356180756,1742030826053,-500.0,8.219e-05,2]
[356180757,1742030826074,-500.0,8.219e-05,2]
[356180758,1742030826095,-500.0,8.219e-05,2]
[356180759,1742030826117,-500.0,8.219e-05,2]
[356180760,1742030826138,-500.0,8.219e-05,2]
[356180761,1742030826160,-5713.47,8.219e-05,2]
[356180762,1742030826182,-500.0,8.219e-05,2]
[356180763,1742030826204,-502.92469428,8.219e-05,2]
[356180764,1742030826226,-500.0,8.219e-05,2]
[356180765,1742030826247,-641.94,8.219e-05,2]
[356180766,1742030826270,-2951.38,8.219e-05,2]
[356180767,1742030826291,-500.0,8.219e-05,2]
[356180768,1742030826313,-500.0,8.219e-05,2]
[356180769,1742030826335,-500.0,8.219e-05,2]
[356180770,1742030826356,-530.39639618,8.219e-05,2]
[356180771,1742030826379,-500.0,8.219e-05,2]
[356180772,1742030826400,-500.0,8.219e-05,2]
[356180773,1742030826423,-1769.95,8.219e-05,2]
[356180774,1742030826446,-500.0,8.219e-05,2]
[356180775,1742030826468,-500.0,8.219e-05,2]
[356180776,1742030826491,-500.0,8.219e-05,2]
[356180777,1742030826513,-500.0,8.219e-05,2]
[356180778,1742030826534,-500.0,8.219e-05,2]
[356180779,1742030826556,-744.39,8.219e-05,2]
[356180780,1742030826578,-820.04,8.219e-05,2]
[356180781,1742030826600,-507.28730545,8.219e-05,2]
[356180783,1742030826622,-500.0,8.219e-05,2]
[356180784,1742030826644,-500.0,8.219e-05,2]
[356180785,1742030826667,-500.0,8.219e-05,2]
[356180786,1742030826689,-500.0,8.219e-05,2]
[356180787,1742030826710,-500.0,8.219e-05,2]
[356180788,1742030826731,-500.0,8.219e-05,2]
[356180789,1742030826751,-504.26269831,8.219e-05,2]
[356180790,1742030826772,-1479.25,8.219e-05,2]
[356180791,1742030826794,-500.0,8.219e-05,2]
[356180792,1742030826815,-269.26310966,8.219e-05,2]
[356180793,1742030826836,-500.0,8.219e-05,2]
[356180794,1742030826857,-500.0,8.219e-05,2]
[356180795,1742030826878,-833.9,8.219e-05,2]
[356180796,1742030826899,-500.0,8.219e-05,2]
[356180797,1742030826921,-1071.96,8.219e-05,2]
[356180798,1742030826942,-500.0,8.219e-05,2]
[356180799,1742030826964,-779.97,8.219e-05,2]
[356180800,1742030826986,-500.0,8.219e-05,2]
[356180801,1742030827009,-933.6,8.219e-05,2]
[356180802,1742030827031,-500.0,8.219e-05,2]
[356180803,1742030827052,-500.0,8.219e-05,2]
[356180804,1742030827075,-509.24363711,8.219e-05,2]
[356180805,1742030827096,-2543.81,8.219e-05,2]
[356180806,1742030827119,-3917.74,8.219e-05,2]
[356180807,1742030827140,-500.0,8.219e-05,2]
[356180808,1742030827161,-500.0,8.219e-05,2]
[356180809,1742030827182,-500.0,8.219e-05,2]
[356180810,1742030827204,-500.0,8.219e-05,2]
[356180811,1742030827226,-600.13,8.219e-05,2]
[356180812,1742030827248,-500.0,8.219e-05,2]
[356180813,1742030827270,-500.0,8.219e-05,2]
[356180814,1742030827291,-4789.49,8.219e-05,2]
[356180815,1742030827314,-299.13389746,8.219e-05,2]
[356180816,1742030827336,-505.3623663,8.219e-05,2]
[356180817,1742030827357,-500.0,8.219e-05,2]
[356180818,1742030827379,-500.0,8.219e-05,2]
[356180819,1742030827400,-511.33369552,8.219e-05,2]
[356180820,1742030827424,-134361.21721711,8.219e-05,2]
[356180868,1742030989297,153.0,0.00014001,30]
[356180885,1742031032027,-556.00460055,8.118e-05,2]
[356180886,1742031032036,-300.0,8.118e-05,2]
[356180887,1742031032046,-25455.68677163,8.119e-05,2]
[356180967,1742031042541,-1219.75,8.119e-05,2]
[356180970,1742031042865,-976.71646529,8.119e-05,2]
[356180971,1742031042907,-428.21868673,8.119e-05,2]
[356180972,1742031042919,-1003.86188639,8.119e-05,2]
[356180973,1742031042930,-2833.1421532,8.119e-05,2]
[356180974,1742031043062,-398.076,8.119e-05,2]
[356181009,1742031605440,407.0,0.00015358,120]
[356181010,1742032106981,6044.17,0.00014001,30]
[356181011,1742032152159,-359.70120619,5.977e-05,2]
[356181012,1742032152180,-150.0,6e-05,2]
[356181013,1742032152201,-288.0,6e-05,2]
[356181014,1742032152221,-576.0,6e-05,2]
[356181015,1742032152242,-1152.0,6e-05,2]
[356181016,1742032152262,-2305.0,6e-05,2]
[356181017,1742032152293,-2911.0,6e-05,2]
[356181018,1742032152316,-4487.0,6e-05,2]
[356181019,1742032152339,-3135.68783381,6e-05,2]
[356181041,1742032232111,-300.0,5.999e-05,2]
[356181042,1742032232121,-1474.31216619,6e-05,2]
[356181043,1742032232131,-6282.82225058,6e-05,2]
[356181047,1742032232166,-389.170668,6e-05,2]
[356181050,1742032232223,-450.00708142,6e-05,2]
[356181051,1742032232233,-1206.89,6.098e-05,2]
[356181052,1742032232242,-420.0,6.599e-05,2]
[356181053,1742032232251,-329.063657,6.962e-05,2]
[356181054,1742032232261,-587.0,7.259e-05,2]
[356181055,1742032232271,-24900.0,7.397e-05,2]
[356181056,1742032232280,-163.9850163,7.762e-05,2]
[356181057,1742032232289,-823.0,7.985e-05,2]
[356181058,1742032232298,-151.0,8e-05,2]
[356181059,1742032232308,-151.0,8e-05,2]
[356181060,1742032232316,-151.0,8e-05,2]
[356181061,1742032232325,-151.0,8e-05,2]
[356181062,1742032232335,-151.17982,8e-05,2]
[356181063,1742032232344,-222000.0,8.019e-05,2]
[356181064,1742032232354,-500.0,8.178e-05,2]
[356181065,1742032232363,-500.00000009,8.193e-05,2]
[356181066,1742032232372,-500.0,8.193e-05,2]
[356181067,1742032232381,-500.0,8.193e-05,2]
[356181068,1742032232390,-429.22925141,8.193e-05,2]
[356181069,1742032232399,-362.19133297,8.193e-05,2]
[356181070,1742032232408,-500.0,8.193e-05,2]
[356181071,1742032232417,-500.0,8.193e-05,2]
[356181072,1742032232427,-223.94440726,8.193e-05,2]
[356181073,1742032232436,-500.0,8.193e-05,2]
[356181074,1742032232445,-501.6078433,8.193e-05,2]
[356181075,1742032232455,-500.0,8.193e-05,2]
[356181076,1742032232464,-400.99708935,8.193e-05,2]
[356181077,1742032232474,-500.0,8.193e-05,2]
[356181078,1742032232484,-500.0,8.193e-05,2]
[356181079,1742032232493,-500.0,8.193e-05,2]
[356181080,1742032232503,-500.0,8.193e-05,2]
[356181081,1742032232512,-500.0,8.193e-05,2]
[356181082,1742032232520,-500.0,8.193e-05,2]
[356181083,1742032232529,-500.0,8.193e-05,2]
[356181084,1742032232538,-155.0,8.193e-05,2]
[356181085,1742032232547,-159.01123413,8.193e-05,2]
[356181086,1742032232556,-500.0,8.193e-05,2]
[356181087,1742032232564,-503.75257409,8.193e-05,2]
[356181088,1742032232573,-500.0,8.193e-05,2]
[356181089,1742032232582,-635.7641911,8.193e-05,2]
[356181090,1742032232590,-500.0,8.193e-05,2]
[356181091,1742032232600,-500.0,8.193e-05,2]
[356181092,1742032232609,-207.427,8.206e-05,2]
[356181093,1742032232618,-151.0,8.218e-05,2]
[356181094,1742032232627,-500.0,8.218e-05,2]
[356181095,1742032232637,-500.0,8.219e-05,2]
[356181096,1742032232646,-500.0,8.219e-05,2]
[356181097,1742032232656,-500.0,8.219e-05,2]
[356181098,1742032232665,-500.0,8.219e-05,2]
[356181099,1742032232675,-525.97508585,8.219e-05,2]
[356181100,1742032232684,-500.0,8.219e-05,2]
[356181101,1742032232693,-500.0,8.219e-05,2]
[356181102,1742032232703,-500.0,8.219e-05,2]
[356181103,1742032232713,-500.0,8.219e-05,2]
[356181104,1742032232722,-500.0,8.219e-05,2]
[356181105,1742032232732,-500.0,8.219e-05,2]
[356181106,1742032232742,-500.0,8.219e-05,2]
[356181107,1742032232751,-418.98745018,8.219e-05,2]
[356181108,1742032232761,-500.0,8.219e-05,2]
[356181109,1742032232771,-500.0,8.219e-05,2]
[356181110,1742032232780,-500.0,8.219e-05,2]
[356181111,1742032232790,-500.0,8.219e-05,2]
[356181112,1742032232800,-500.0,8.219e-05,2]
[356181113,1742032232809,-500.0,8.219e-05,2]
[356181114,1742032232819,-500.0,8.219e-05,2]
[356181115,1742032232828,-500.0,8.219e-05,2]
[356181116,1742032232837,-500.0,8.219e-05,2]
[356181117,1742032232846,-500.0,8.219e-05,2]
[356181118,1742032232855,-510.40496813,8.219e-05,2]
[356181119,1742032232863,-500.0,8.219e-05,2]
[356181120,1742032232873,-500.0,8.219e-05,2]
[356181121,1742032232882,-593.79623271,8.219e-05,2]
[356181122,1742032232891,-500.0,8.219e-05,2]
[356181123,1742032232900,-501.90934892,8.219e-05,2]
[356181124,1742032232910,-500.0,8.219e-05,2]
[356181125,1742032232919,-500.0,8.219e-05,2]
[356181126,1742032232928,-500.0,8.219e-05,2]
[356181127,1742032232936,-500.0,8.219e-05,2]
[356181128,1742032232948,-500.0,8.219e-05,2]
[356181129,1742032232957,-500.0,8.219e-05,2]
[356181130,1742032232967,-500.0,8.219e-05,2]
[356181131,1742032232977,-500.0,8.219e-05,2]
[356181132,1742032232986,-500.0,8.219e-05,2]
[356181133,1742032232996,-527.41102378,8.219e-05,2]
[356181134,1742032233011,-500.0,8.219e-05,2]
[356181135,1742032233020,-511.01697191,8.219e-05,2]
[356181136,1742032233029,-500.0,8.219e-05,2]
[356181137,1742032233039,-500.0,8.219e-05,2]
[356181138,1742032233050,-500.0,8.219e-05,2]
[356181139,1742032233059,-500.0,8.219e-05,2]
[356181140,1742032233069,-500.0,8.219e-05,2]
[356181141,1742032233080,-500.0,8.219e-05,2]
[356181142,1742032233089,-500.0,8.219e-05,2]
[356181143,1742032233100,-500.0,8.219e-05,2]
[356181144,1742032233109,-500.0,8.219e-05,2]
[356181145,1742032233118,-549.25,8.219e-05,2]
[356181146,1742032233127,-500.0,8.219e-05,2]
[356181147,1742032233136,-500.0,8.219e-05,2]
[356181148,1742032233146,-500.0,8.219e-05,2]
[356181149,1742032233155,-500.0,8.219e-05,2]
[356181150,1742032233165,-500.0,8.219e-05,2]
[356181151,1742032233175,-500.0,8.219e-05,2]
[356181152,1742032233184,-500.0,8.219e-05,2]
[356181153,1742032233194,-500.0,8.219e-05,2]
[356181154,1742032233203,-500.0,8.219e-05,2]
[356181155,1742032233213,-500.0,8.219e-05,2]
[356181156,1742032233222,-500.0,8.219e-05,2]
[356181157,1742032233232,-500.0,8.219e-05,2]
[356181158,1742032233240,-500.0,8.219e-05,2]
[356181159,1742032233249,-452.2,8.219e-05,2]
[356181160,1742032233257,-500.0,8.219e-05,2]
[356181161,1742032233264,-500.0,8.219e-05,2]
[356181162,1742032233274,-500.0,8.219e-05,2]
[356181163,1742032233284,-500.0,8.219e-05,2]
[356181164,1742032233294,-436.18549233,8.219e-05,2]
[356181165,1742032233303,-500.0,8.219e-05,2]
[356181166,1742032233313,-500.0,8.219e-05,2]
[356181167,1742032233322,-639.31,8.219e-05,2]
[356181168,1742032233332,-500.42647189,8.219e-05,2]
[356181169,1742032233342,-500.0,8.219e-05,2]
[356181170,1742032233351,-500.0,8.219e-05,2]
[356181171,1742032233361,-500.0,8.219e-05,2]
[356181172,1742032233372,-500.0,8.219e-05,2]
[356181173,1742032233382,-526.51,8.219e-05,2]
[356181174,1742032233392,-500.0,8.219e-05,2]
[356181175,1742032233401,-500.0,8.219e-05,2]
[356181176,1742032233412,-598.94030797,8.219e-05,2]
[356181177,1742032233422,-500.0,8.219e-05,2]
[356181178,1742032233431,-500.0,8.219e-05,2]
[356181179,1742032233442,-797.41,8.219e-05,2]
[356181180,1742032233452,-502.23817143,8.219e-05,2]
[356181181,1742032233462,-500.0,8.219e-05,2]
[356181182,1742032233472,-500.0,8.219e-05,2]
[356181183,1742032233482,-500.0,8.219e-05,2]
[356181184,1742032233492,-500.0,8.219e-05,2]
[356181185,1742032233502,-500.0,8.219e-05,2]
[356181186,1742032233512,-500.0,8.219e-05,2]
[356181187,1742032233522,-500.0,8.219e-05,2]
[356181188,1742032233531,-500.0,8.219e-05,2]
[356181189,1742032233542,-500.0,8.219e-05,2]
[356181190,1742032233551,-500.0,8.219e-05,2]
[356181191,1742032233560,-500.0,8.219e-05,2]
[356181192,1742032233571,-500.0,8.219e-05,2]
[356181193,1742032233580,-500.0,8.219e-05,2]
[356181194,1742032233589,-1401.61,8.219e-05,2]
[356181195,1742032233598,-501.93662265,8.219e-05,2]
[356181196,1742032233823,-500.0,8.219e-05,2]
[356181197,1742032233833,-500.0,8.219e-05,2]
[356181198,1742032233843,-719.09,8.219e-05,2]
[356181199,1742032233853,-500.0,8.219e-05,2]
[356181200,1742032233863,-515.06086535,8.219e-05,2]
[356181201,1742032233873,-500.0,8.219e-05,2]
[356181202,1742032233883,-508.1223083,8.219e-05,2]
[356181203,1742032233893,-500.0,8.219e-05,2]
[356181204,1742032233903,-500.0,8.219e-05,2]
[356181205,1742032233913,-500.0,8.219e-05,2]
[356181206,1742032233923,-730.49,8.219e-05,2]
[356181207,1742032233933,-500.0,8.219e-05,2]
[356181208,1742032233943,-855.02,8.219e-05,2]
[356181209,1742032233953,-500.0,8.219e-05,2]
[356181210,1742032233962,-500.0,8.219e-05,2]
[356181211,1742032233971,-500.0,8.219e-05,2]
[356181212,1742032233980,-318.52,8.219e-05,2]
[356181213,1742032233990,-1383.46,8.219e-05,2]
[356181214,1742032234000,-510.35016898,8.219e-05,2]
[356181215,1742032234014,-500.0,8.219e-05,2]
[356181216,1742032234024,-344.99728756,8.219e-05,2]
[356181268,1742033210101,-207.7134576,7.051e-05,2]
[356181269,1742033210123,-207.7134576,7.122e-05,2]
[356181270,1742033210144,-191.3132222,7.139e-05,2]
[356181271,1742033210166,-300.0,7.396e-05,2]
[356181272,1742033210187,-6744.34970792,7.397e-05,2]
[356181338,1742033438247,-151.98774859,7.25e-05,2]
[356181340,1742033438256,-300.0,7.396e-05,2]
[356181342,1742033438266,-49.46176258,7.397e-05,2]
[356181594,1742033443383,-850.12109392,7.397e-05,2]
[356181920,1742034208704,3400.0,0.00014,30]
[356182024,1742034646703,-375.5445754,7.09e-05,2]
[356182025,1742034646712,-429.51339672,7.397e-05,2]
[356182028,1742034659605,-24470.48660328,7.397e-05,2]
[356182029,1742034659626,-828.1819605,7.796e-05,2]
[356182030,1742034659648,-461.85886355,7.918e-05,2]
[356182031,1742034659670,-221674.47257267,7.919e-05,2]
[356182172,1742035838736,-1.11749429,7.396e-05,2]
[356182173,1742035838748,-298.88250571,7.396e-05,2]
[356182174,1742035838758,-500.0,7.396e-05,2]
[356182175,1742035838767,-2262.77340072,7.397e-05,2]
[356182213,1742035846681,-22362.06229478,7.397e-05,2]
[356182214,1742035846690,-151.0,7.918e-05,2]
[356182215,1742035846699,-19927.42007444,8.1e-05,2]
[356182216,1742035846709,-323.30120449,8.118e-05,2]
[356182217,1742035846718,-45072.58074192,8.119e-05,2]
[356182273,1742037032047,-226.31084314,8.018e-05,2]
[356182275,1742037032056,-252.90398586,8.018e-05,2]
[356182277,1742037032068,-47.09601414,8.018e-05,2]
[356182279,1742037032077,-30402.39068393,8.019e-05,2]
[356182309,1742037037688,-1563.96716672,8.019e-05,2]
[356182508,1742038237858,-300.0,7.396e-05,2]
[356182509,1742038237869,-3155.65,7.397e-05,2]
[356182510,1742038237919,-18934.9975624,7.397e-05,2]
[356182511,1742038237930,-158.4175902,7.918e-05,2]
[356182512,1742038237941,-11335.82617086,7.919e-05,2]
[356182516,1742038240098,-1605.52430516,7.919e-05,2]
[356182517,1742038240110,-2129.85333198,7.919e-05,2]
[356182526,1742038243041,-1677.28475584,7.919e-05,2]
[356182527,1742038246201,-1464.15465888,7.919e-05,2]
[356182531,1742038661364,215.40887112,0.0001536,120]
[356182532,1742038677661,-160.0,9.985e-05,6]
[356182533,1742038677692,-160.0,0.00010155,7]
[356182534,1742038677715,-160.0,0.00010326,8]
[356182535,1742038677745,-160.0,0.00010497,9]
[356182536,1742038677770,-160.0,0.00010668,10]
[356182537,1742038677801,-160.0,0.00010838,11]
[356182564,1742039438075,-429.85584115,7.397e-05,2]
[356182565,1742039438087,-804.16134615,7.397e-05,2]
[356182566,1742039438097,-300.0,7.818e-05,2]
[356182567,1742039438107,-10747.13996332,7.819e-05,2]
[356182575,1742039440473,-39.94710696,7.819e-05,2]
[356182586,1742039443354,-1588.18584876,7.819e-05,2]
[356182588,1742039446305,-2548.9748,7.819e-05,2]
[356182590,1742039721390,160.0,0.00010887,7]
[356182591,1742039721779,160.0,0.0001057,6]
[356182627,1742040635325,-300.0,7.717e-05,2]
[356182628,1742040635336,-220.50648212,7.718e-05,2]
[356182629,1742040635345,-500.0,7.718e-05,2]
[356182630,1742040635355,-571.45960059,7.718e-05,2]
[356182631,1742040635365,-154.92778272,7.718e-05,2]
[356182632,1742040635377,-345.07221728,7.718e-05,2]
[356182633,1742040635387,-500.0,7.718e-05,2]
[356182634,1742040635397,-500.0,7.718e-05,2]
[356182635,1742040635407,-500.0,7.718e-05,2]
[356182636,1742040635417,-33653.56101602,7.719e-05,2]
[356182637,1742040635429,-6616.4597546,7.719e-05,2]
[356182638,1742040635441,-181729.97922938,7.719e-05,2]
[356182639,1742040635451,-585.53958956,7.818e-05,2]
[356182640,1742040635460,-585.53958955,7.918e-05,2]
[356182641,1742040635470,-2097.0592061,7.918e-05,2]
[356182643,1742040635480,-151.0,8.018e-05,2]
[356182645,1742040635489,-585.53958955,8.019e-05,2]
[356182647,1742040635499,-150.0,8.055e-05,2]
[356182649,1742040635509,-1912.0,8.055e-05,2]
[356182650,1742040635519,-540.0,8.055e-05,2]
[356182653,1742040635529,-2269.0,8.055e-05,2]
[356182655,1742040635539,-399.0,8.055e-05,2]
[356182657,1742040635549,-559.9647179,8.09e-05,2]
[356182659,1742040635559,-158.4111736,8.09e-05,2]
[356182661,1742040635568,-585.53958955,8.119e-05,2]
[356182663,1742040635578,-37231.75126455,8.137e-05,2]
[356182665,1742040635588,-155.417131,8.14e-05,2]
[356182667,1742040635598,-559.6044626,8.14e-05,2]
[356182669,1742040635608,-834.96754831,8.17e-05,2]
[356182671,1742040635617,-500.0,8.193e-05,2]
[356182673,1742040635627,-500.0,8.193e-05,2]
[356182675,1742040635636,-500.0,8.193e-05,2]
[356182676,1742040635646,-250.83038847,8.193e-05,2]
[356182677,1742040635668,-411.61419594,8.193e-05,2]
[356182679,1742040635680,-500.0,8.193e-05,2]
[356182681,1742040635693,-500.0,8.193e-05,2]
[356182683,1742040635703,-366.17843525,8.193e-05,2]
[356182686,1742040635713,-285.907,8.21e-05,2]
[356182688,1742040635725,-201.69185775,8.21e-05,2]
[356182690,1742040635735,-151.0,8.219e-05,2]
[356182692,1742040635746,-637.64305924,8.219e-05,2]
[356182694,1742040635755,-150.95700982,8.219e-05,2]
[356182696,1742040635768,-150.32,8.219e-05,2]
[356182698,1742040635780,-500.0,8.219e-05,2]
[356182700,1742040635790,-151.45589968,8.219e-05,2]
[356182703,1742040635800,-500.0,8.219e-05,2]
[356182705,1742040635810,-500.0,8.219e-05,2]
[356182707,1742040635819,-500.0,8.219e-05,2]
[356182708,1742040635830,-500.0,8.219e-05,2]
[356182709,1742040635841,-500.0,8.219e-05,2]
[356182710,1742040635851,-500.0,8.219e-05,2]
[356182711,1742040635861,-500.0,8.219e-05,2]
[356182712,1742040635872,-500.0,8.219e-05,2]
[356182713,1742040635882,-506.93887013,8.219e-05,2]
[356182714,1742040635892,-500.0,8.219e-05,2]
[356182715,1742040635903,-165.970388,8.219e-05,2]
[356182716,1742040635914,-165.970388,8.219e-05,2]
[356182717,1742040635924,-165.970388,8.219e-05,2]
[356182718,1742040635935,-165.970388,8.219e-05,2]
[356182719,1742040635945,-165.970388,8.219e-05,2]
[356182720,1742040635955,-165.970388,8.219e-05,2]
[356182721,1742040635965,-165.970388,8.219e-05,2]
[356182722,1742040635976,-165.970388,8.219e-05,2]
[356182723,1742040635986,-165.970388,8.219e-05,2]
[356182724,1742040635996,-165.970388,8.219e-05,2]
[356182725,1742040636007,-165.970388,8.219e-05,2]
[356182726,1742040636019,-165.970388,8.219e-05,2]
[356182727,1742040636029,-165.970388,8.219e-05,2]
[356182728,1742040636039,-165.970388,8.219e-05,2]
[356182729,1742040636049,-165.970388,8.219e-05,2]
[356182730,1742040636059,-165.970388,8.219e-05,2]
[356182731,1742040636070,-165.970388,8.219e-05,2]
[356182732,1742040636083,-165.970388,8.219e-05,2]
[356182733,1742040636094,-165.970388,8.219e-05,2]
[356182734,1742040636105,-165.970396,8.219e-05,2]
[356182735,1742040636115,-500.0,8.219e-05,2]
[356182736,1742040636125,-500.0,8.219e-05,2]
[356182737,1742040636135,-502.19625442,8.219e-05,2]
[356182738,1742040636145,-500.0,8.219e-05,2]
[356182739,1742040636155,-500.0,8.219e-05,2]
[356182740,1742040636165,-500.0,8.219e-05,2]
[356182741,1742040636175,-500.0,8.219e-05,2]
[356182742,1742040636186,-500.0,8.219e-05,2]
[356182743,1742040636196,-500.0,8.219e-05,2]
[356182744,1742040636206,-500.0,8.219e-05,2]
[356182745,1742040636217,-500.0,8.219e-05,2]
[356182746,1742040636227,-500.0,8.219e-05,2]
[356182747,1742040636237,-500.0,8.219e-05,2]
[356182748,1742040636247,-500.0,8.219e-05,2]